bitfinex-derivatives/quotes_BTCF0:USTF0_20250711
["timestamp","ask_amount","ask_price","bid_price","bid_amount"]
[1752235885032,0.06193513,118160.0,118150.0,1.01744737]
[1752235885428,0.86248633,118170.0,118160.0,0.1692206]
[1752235885629,0.86248633,118170.0,118160.0,1.00174512]
[1752235886231,0.8015512,118170.0,118160.0,1.00174512]
[1752235886432,0.81562613,118170.0,118160.0,1.00174512]
[1752235886931,0.8015512,118170.0,118160.0,1.00174512]
[1752235887632,0.8015512,118170.0,118160.0,0.5952206]
[1752235887633,1.20807572,118170.0,118160.0,0.5952206]
[1752235887833,1.20807572,118170.0,118160.0,1.00174512]
[1752235888829,0.8015512,118170.0,118160.0,1.00174512]
[1752235889136,1.20807572,118170.0,118160.0,1.00174512]
[1752235889736,0.8015512,118170.0,118160.0,1.00174512]
[1752235889938,1.20807572,118170.0,118160.0,1.00174512]
[1752235892442,0.62003572,118170.0,118160.0,1.00174512]
[1752235892639,1.20787572,118170.0,118160.0,1.00174512]
[1752235894141,0.8013512,118170.0,118160.0,1.00174512]
[1752235894342,1.20787572,118170.0,118160.0,0.5952206]
[1752235894542,1.20787572,118170.0,118160.0,1.00174512]
[1752235896138,1.23967572,118170.0,118160.0,1.00174512]
[1752235899739,1.23967572,118170.0,118160.0,1.02550275]
[1752235899948,1.23967572,118170.0,118160.0,1.00174512]
[1752235900141,1.23967572,118170.0,118160.0,1.02550275]
[1752235900946,1.23967572,118170.0,118160.0,1.00174512]
[1752235901541,1.27247572,118170.0,118160.0,1.00174512]
[1752235902045,0.002,118170.0,118160.0,1.00174512]
[1752235902251,0.6802566,118200.0,118160.0,1.40830504]
[1752235902548,0.1691633,118200.0,118190.0,0.93650212]
[1752235902752,0.1691633,118200.0,118190.0,2.12760654]
[1752235902950,0.1691633,118200.0,118190.0,2.19160654]
[1752235903655,0.1751633,118200.0,118190.0,2.19160654]
[1752235904152,0.1721633,118200.0,118190.0,2.19160654]
[1752235904451,0.1701633,118200.0,118190.0,2.19160654]
[1752235904853,0.1701633,118200.0,118190.0,2.14601719]
[1752235906052,0.1701633,118200.0,118190.0,1.78508202]
[1752235906352,0.1701633,118200.0,118190.0,2.14601719]
[1752235907354,0.1701633,118200.0,118190.0,1.78508202]
[1752235907557,0.1701633,118200.0,118190.0,2.14601719]
[1752235910156,0.1691633,118200.0,118190.0,2.14701719]
[1752235910558,0.1691633,118200.0,118190.0,2.14801719]
[1752235912766,0.2791414,118210.0,118200.0,0.1691632]
[1752235913059,0.2791414,118210.0,118200.0,0.59129837]
[1752235913258,0.2791414,118210.0,118200.0,0.56019837]
[1752235913652,0.2791414,118210.0,118200.0,0.1992632]
[1752235914863,0.2801414,118210.0,118200.0,0.1992632]
[1752235916556,0.2801414,118210.0,118200.0,0.1691632]
[1752235916759,0.64107657,118210.0,118200.0,0.1691632]
[1752235918359,0.2801414,118210.0,118200.0,0.1691632]
[1752235918565,0.64107657,118210.0,118200.0,0.1691632]
[1752235919767,0.2801414,118210.0,118200.0,0.1691632]
[1752235919965,0.64107657,118210.0,118200.0,0.1691632]
[1752235921464,0.1691633,118200.0,118190.0,1.78921445]
[1752235921767,0.59449847,118200.0,118190.0,0.61417445]
[1752235921964,1.18153847,118200.0,118190.0,0.61417445]
[1752235922165,1.19948382,118200.0,118190.0,0.61417445]
[1752235923866,1.19948382,118200.0,118190.0,0.61617445]
[1752235924367,0.83854865,118200.0,118190.0,0.61617445]
[1752235925564,0.8206033,118200.0,118190.0,0.61617445]
[1752235926469,1.18153847,118200.0,118190.0,0.25547445]
[1752235926873,1.22673446,118200.0,118190.0,0.66160561]
[1752235927369,1.22673446,118200.0,118190.0,0.65960561]
[1752235927673,1.22773446,118200.0,118190.0,0.65960561]
[1752235928167,1.22773446,118200.0,118190.0,0.68403668]
[1752235928673,1.22773446,118200.0,118190.0,0.65960561]
[1752235929068,1.22773446,118200.0,118190.0,0.68403689]
[1752235929671,0.001,118200.0,118190.0,0.71413689]
[1752235929872,0.001,118200.0,118190.0,1.10573689]
[1752235930674,1.24878966,118210.0,118200.0,0.1691633]
[1752235930874,0.8426585,118210.0,118200.0,0.55450029]
[1752235931074,0.8744585,118210.0,118200.0,0.19359458]
[1752235931671,0.9074585,118210.0,118200.0,0.19359458]
[1752235931872,0.9074185,118210.0,118200.0,0.2009633]
[1752235932875,0.8651297,118210.0,118200.0,0.56186901]
[1752235933075,0.2782497,118210.0,118200.0,0.56186901]
[1752235933269,0.8650897,118210.0,118200.0,0.56186901]
[1752235933877,0.8650897,118210.0,118200.0,0.59426901]
[1752235934375,0.2782497,118210.0,118200.0,0.59426901]
[1752235934577,0.8650897,118210.0,118200.0,0.59426901]
[1752235935172,0.2782497,118210.0,118200.0,0.59426901]
[1752235935367,0.0668,118210.0,118200.0,0.59426901]
[1752235935573,0.171149,118210.0,118200.0,0.59426901]
[1752235935775,0.171149,118210.0,118200.0,0.61861351]
[1752235936177,0.002,118210.0,118200.0,0.61861351]
[1752235936770,0.171149,118210.0,118200.0,0.61861351]
[1752235937080,0.002,118210.0,118200.0,0.61861351]
[1752235937373,0.002,118210.0,118200.0,2.15315922]
[1752235937578,0.002,118210.0,118200.0,2.51395922]
[1752235937780,0.002,118210.0,118200.0,2.15305351]
[1752235937976,0.01737019,118220.0,118210.0,0.169149]
[1752235938181,0.01737019,118220.0,118210.0,0.96931266]
[1752235938372,0.01737019,118220.0,118210.0,1.16283078]
[1752235939675,0.01737019,118220.0,118210.0,0.99364678]
[1752235940276,1.36569544,118250.0,118240.0,0.169106]
[1752235940277,0.002,118250.0,118240.0,0.169106]
[1752235940478,0.1710917,118250.0,118240.0,1.71941934]
[1752235940774,1.49748592,118250.0,118240.0,0.01592763]
[1752235940980,0.1691346,118220.0,118210.0,0.59048445]
[1752235941282,0.53004031,118220.0,118210.0,0.31425645]
[1752235941580,0.59134031,118220.0,118210.0,0.31325645]
[1752235942081,0.59134031,118220.0,118210.0,0.31225645]
[1752235942482,0.2304346,118220.0,118210.0,0.31225645]
[1752235942782,0.2304346,118220.0,118210.0,0.34485645]
[1752235943384,0.2304346,118220.0,118210.0,0.70565645]
[1752235943575,0.2304346,118220.0,118210.0,0.34585645]
[1752235943775,0.2304346,118220.0,118210.0,0.34685645]
[1752235943980,0.0613,118220.0,118210.0,0.70765645]
[1752235944483,0.0613,118220.0,118210.0,1.06856216]
[1752235944685,0.0613,118220.0,118210.0,1.10176216]
[1752235945187,0.1691323,118230.0,118220.0,0.1691346]
[1752235945394,0.7882323,118230.0,118220.0,0.1691346]
[1752235945694,0.8206323,118230.0,118220.0,0.1691346]
[1752235946393,0.8206323,118230.0,118220.0,0.5299346]
[1752235947192,0.2340323,118230.0,118220.0,0.5299346]
[1752235948491,0.2340323,118230.0,118220.0,0.1691346]
[1752235948799,0.59493801,118230.0,118220.0,0.1691346]
[1752235948997,0.59493801,118230.0,118210.0,0.93062126]
[1752235948998,0.1691346,118220.0,118210.0,0.73885245]
[1752235949198,0.2331346,118220.0,118210.0,0.73885245]
[1752235949393,0.2331346,118220.0,118210.0,1.32541245]
[1752235949699,0.2331346,118220.0,118210.0,0.81423995]
[1752235949998,0.59404031,118220.0,118210.0,0.22767995]
[1752235950296,0.59404031,118220.0,118210.0,0.22867995]
[1752235950497,0.2331346,118220.0,118210.0,0.22867995]
[1752235951199,0.2331346,118220.0,118210.0,0.22967995]
[1752235953901,0.2505654,118220.0,118210.0,0.22967995]
[1752235954791,0.2505654,118220.0,118210.0,0.59047995]
[1752235958304,0.2331346,118220.0,118210.0,0.59047995]
[1752235963512,0.064,118220.0,118210.0,0.59047995]
[1752235963713,0.2331346,118220.0,118210.0,0.59047995]
[1752235963904,0.2331346,118220.0,118210.0,0.95138566]
[1752235964507,0.63227338,118240.0,118230.0,0.1691203]
[1752235964706,0.93580493,118250.0,118240.0,0.169106]
[1752235964906,1.00030493,118250.0,118240.0,0.53001171]
[1752235965105,0.92443841,118250.0,118240.0,0.169106]
[1752235965306,0.9852697,118250.0,118240.0,0.169106]
[1752235965811,0.92443841,118250.0,118240.0,0.169106]
[1752235966112,0.33811841,118250.0,118240.0,0.169106]
[1752235966311,1.28534412,118250.0,118240.0,0.169106]
[1752235966512,0.70102412,118250.0,118240.0,0.169106]
[1752235966711,1.28730412,118250.0,118240.0,0.169106]
[1752235967708,1.28730412,118250.0,118240.0,0.170106]
[1752235970606,1.64810412,118250.0,118240.0,0.170106]
[1752235971509,1.06182412,118250.0,118240.0,0.170106]
[1752235971712,1.64806412,118250.0,118240.0,0.170106]
[1752235973009,1.70889541,118250.0,118240.0,0.170106]
[1752235973212,1.64806412,118250.0,118240.0,0.170106]
[1752235976616,1.28715841,118250.0,118240.0,0.170106]
[1752235977414,0.92635841,118250.0,118240.0,0.170106]
[1752235977615,0.34011841,118250.0,118240.0,0.170106]
[1752235977816,0.92619841,118250.0,118240.0,0.170106]
[1752235980516,1.28710412,118250.0,118240.0,0.170106]
[1752235980716,1.26913561,118250.0,118240.0,0.170106]
[1752235981115,1.62993561,118250.0,118240.0,0.001]
[1752235981417,1.62993561,118250.0,118240.0,0.1701061]
[1752235981914,0.2053918,118250.0,118240.0,0.1701061]
[1752235982120,0.7590918,118250.0,118240.0,0.1701061]
[1752235982422,0.7590918,118250.0,118240.0,0.2322061]
[1752235982813,0.1730918,118250.0,118240.0,0.59311181]
[1752235983121,0.7590918,118250.0,118240.0,0.59311181]
[1752235983315,0.7590918,118250.0,118240.0,0.95391181]
[1752235983515,0.7570918,118250.0,118240.0,0.95391181]
[1752235985215,0.7570918,118250.0,118240.0,0.5930061]
[1752235985416,0.7570918,118250.0,118240.0,0.2014061]
[1752235985417,0.8211918,118250.0,118240.0,0.2014061]
[1752235986317,1.62123133,118250.0,118240.0,0.001]
[1752235990018,1.26016562,118250.0,118240.0,0.1701061]
[1752235990223,1.26027133,118250.0,118240.0,0.1701061]
[1752235991426,1.26027133,118250.0,118240.0,0.001]
[1752235991619,0.89936562,118250.0,118240.0,0.1701061]
[1752235991820,1.26016562,118250.0,118240.0,0.001]
[1752235992122,1.19933433,118250.0,118240.0,0.1701061]
[1752235992325,1.56024004,118250.0,118240.0,0.1701061]
[1752235992514,1.56024004,118250.0,118240.0,0.17003761]
[1752235993931,1.56024004,118250.0,118240.0,0.00093151]
[1752235994120,0.97440004,118250.0,118240.0,0.00093151]
[1752235994322,0.4269,118250.0,118240.0,0.53094332]
[1752235994529,1.0127,118250.0,118240.0,0.56204332]
[1752235994720,0.0661,118250.0,118240.0,0.95364332]
[1752235994919,0.6519,118250.0,118240.0,0.95364332]
[1752235995217,0.002,118250.0,118240.0,0.95364332]
[1752235995421,0.58776,118250.0,118240.0,0.97814713]
[1752235995614,0.002,118250.0,118240.0,0.97814713]
[1752235996016,0.63392543,118270.0,118260.0,0.1690775]
[1752235996214,0.60372543,118270.0,118260.0,0.89078321]
[1752235996524,0.60372543,118270.0,118260.0,0.95338321]
[1752235996922,0.30240313,118280.0,118270.0,0.1690632]
[1752235997123,0.88812313,118280.0,118270.0,0.1670632]
[1752235998234,1.2394077,118280.0,118270.0,0.1670632]
[1752235999229,1.17857641,118280.0,118270.0,0.1670632]
[1752236000225,1.17853641,118280.0,118270.0,0.1670632]
[1752236000624,0.8176307,118280.0,118270.0,0.1670632]
[1752236001624,0.87846199,118280.0,118270.0,0.1670632]
[1752236003128,0.8175507,118280.0,118270.0,0.18327236]
[1752236003826,0.8175507,118280.0,118270.0,0.54407236]
[1752236004023,0.8175107,118280.0,118270.0,0.54407236]
[1752236004228,0.2319507,118280.0,118270.0,0.54407236]
[1752236004429,0.8175107,118280.0,118270.0,0.54407236]
[1752236004729,0.8175107,118280.0,118270.0,0.18327236]
[1752236005428,0.2319507,118280.0,118270.0,0.18327236]
[1752236005632,0.8175107,118280.0,118270.0,0.18327236]
[1752236005827,0.8175089,118280.0,118270.0,0.18327236]
[1752236006131,0.8174689,118280.0,118270.0,0.54417807]
[1752236006334,0.8174689,118280.0,118270.0,0.57567807]
[1752236006629,0.8174689,118280.0,118270.0,0.21477236]
[1752236007130,0.002,118280.0,118270.0,0.93647807]
[1752236007329,0.7565689,118280.0,118270.0,0.96727807]
[1752236007631,0.7565689,118280.0,118270.0,0.60637236]
[1752236007826,0.1710489,118280.0,118270.0,0.60637236]
[1752236008025,0.7565689,118280.0,118270.0,0.60637236]
[1752236008933,0.002,118280.0,118270.0,0.60637236]
[1752236009119,0.7565689,118280.0,118270.0,0.60637236]
[1752236010328,0.7545689,118280.0,118270.0,0.60637236]
[1752236010527,0.06083129,118300.0,118270.0,1.58021658]
[1752236010727,0.63427091,118330.0,118320.0,0.1689918]
[1752236011033,0.05160041,118330.0,118320.0,0.89069751]
[1752236011329,0.002,118330.0,118320.0,0.89069751]
[1752236011528,0.002,118330.0,118320.0,1.25160322]
[1752236011927,0.002,118330.0,118320.0,0.89069751]
[1752236012329,0.002,118330.0,118320.0,1.25160322]
[1752236012627,0.002,118330.0,118320.0,0.89069751]
[1752236013929,0.002,118330.0,118320.0,1.31210322]
[1752236014836,0.002,118330.0,118320.0,1.3240593]
[1752236017434,0.0617,118350.0,118340.0,0.52986891]
[1752236017625,0.0316,118350.0,118340.0,0.90684223]
[1752236017829,0.0316,118350.0,118340.0,0.93694223]
[1752236019337,0.2005489,118350.0,118340.0,1.29774223]
[1752236019738,0.2005489,118350.0,118340.0,0.93683652]
[1752236019933,0.2328489,118350.0,118340.0,0.90673652]
[1752236020740,0.2328489,118350.0,118340.0,1.26764223]
[1752236023132,0.2328489,118350.0,118340.0,0.90673652]
[1752236023329,0.2328489,118350.0,118340.0,1.26764223]
[1752236023835,0.8178889,118350.0,118340.0,0.90684223]
[1752236024131,0.2957062,118340.0,118330.0,0.1689775]
[1752236024333,0.67616811,118340.0,118330.0,0.1689775]
[1752236024841,0.3152624,118340.0,118330.0,0.1689775]
[1752236026138,0.3152624,118340.0,118330.0,0.5297775]
[1752236027641,0.67616811,118340.0,118330.0,0.5297775]
[1752236031442,0.63392501,118340.0,118330.0,0.5297775]
[1752236031741,0.2003632,118340.0,118330.0,0.89068321]
[1752236032041,0.8285179,118350.0,118340.0,0.1689632]
[1752236032238,0.8591179,118350.0,118340.0,0.5297632]
[1752236032442,0.8168807,118350.0,118340.0,0.89066891]
[1752236032641,0.8168807,118350.0,118340.0,0.92066891]
[1752236033137,0.2319607,118350.0,118340.0,0.92066891]
[1752236033344,0.8168807,118350.0,118340.0,0.92066891]
[1752236035038,0.2319607,118350.0,118340.0,0.92066891]
[1752236035243,0.8168407,118350.0,118340.0,0.92066891]
[1752236035632,0.2319607,118350.0,118340.0,0.92066891]
[1752236035837,0.8168407,118350.0,118340.0,0.92066891]
[1752236036840,0.2319607,118350.0,118340.0,0.92066891]
[1752236037041,0.8168407,118350.0,118340.0,0.92066891]
[1752236037946,0.8168407,118350.0,118340.0,0.89066891]
[1752236038442,1.17774641,118350.0,118340.0,0.3608]
[1752236038650,0.1689632,118340.0,118330.0,0.63022279]
[1752236038841,0.59396891,118340.0,118330.0,0.63022279]
[1752236039449,0.2330632,118340.0,118330.0,0.63022279]
[1752236039945,0.2330632,118340.0,118330.0,0.65506338]
[1752236041145,0.2330632,118340.0,118330.0,0.66827561]
[1752236041451,0.8178632,118340.0,118330.0,1.02918132]
[1752236042651,0.6489,118340.0,118330.0,1.02918132]
[1752236042852,0.8178632,118340.0,118330.0,1.02918132]
[1752236043955,0.8178632,118340.0,118330.0,0.66827561]
[1752236044152,0.8178632,118340.0,118330.0,1.02918132]
[1752236045854,0.8178632,118340.0,118330.0,1.02918083]
[1752236046054,0.8178632,118340.0,118330.0,1.01596909]
[1752236047157,0.6489,118340.0,118330.0,1.01596909]
[1752236047554,0.64882,118340.0,118330.0,1.01596909]
[1752236047754,0.61642,118340.0,118330.0,1.04646909]
[1752236047955,0.0317,118340.0,118330.0,1.04646909]
[1752236048260,0.0317,118340.0,118330.0,1.07666909]
[1752236049060,0.0473114,118350.0,118340.0,0.1689631]
[1752236049247,0.8336402,118350.0,118340.0,0.9155094]
[1752236049948,0.6646914,118350.0,118340.0,0.9155094]
[1752236050154,0.8336403,118350.0,118340.0,0.89066881]
[1752236050558,0.6646914,118350.0,118340.0,0.89066881]
[1752236050757,0.6646914,118350.0,118340.0,0.5297631]
[1752236050957,0.6646914,118350.0,118340.0,0.89066881]
[1752236051759,0.6646914,118350.0,118340.0,0.9143841]
[1752236051960,0.6646514,118350.0,118340.0,0.9143841]
[1752236052559,0.6646514,118350.0,118340.0,0.92583265]
[1752236053563,0.0800114,118350.0,118340.0,0.92583265]
[1752236053757,0.8336003,118350.0,118340.0,0.92583287]
[1752236054062,0.6646514,118350.0,118340.0,0.93331736]
[1752236054256,0.6646514,118350.0,118340.0,0.95703244]
[1752236054458,0.6646514,118350.0,118340.0,0.93331736]
[1752236054658,0.8336003,118350.0,118340.0,0.93331736]
[1752236054858,0.8336003,118350.0,118340.0,0.95703163]
[1752236055659,0.8335603,118350.0,118340.0,0.95703163]
[1752236055859,0.8162489,118350.0,118340.0,0.95703163]
[1752236056555,0.8162489,118350.0,118340.0,0.95702714]
[1752236056957,0.2316489,118350.0,118340.0,0.95702714]
[1752236057160,0.8162489,118350.0,118340.0,0.95702714]
[1752236057661,0.8162489,118350.0,118340.0,0.92582714]
[1752236058559,0.6473,118350.0,118340.0,0.92582714]
[1752236058754,0.6473,118350.0,118340.0,0.92582937]
[1752236059155,0.6473,118350.0,118340.0,0.90211736]
[1752236059362,0.0627,118350.0,118340.0,0.9182811]
[1752236059565,0.64722,118350.0,118340.0,0.9182811]
[1752236059763,0.0627,118350.0,118340.0,0.9182811]
[1752236059967,0.64722,118350.0,118340.0,0.9182811]
[1752236060562,0.64722,118350.0,118340.0,0.94203823]
[1752236060761,0.8161689,118350.0,118340.0,0.94203823]
[1752236060956,0.8161689,118350.0,118340.0,0.9182811]
[1752236061162,0.64722,118350.0,118340.0,0.94204185]
[1752236061361,0.64722,118350.0,118340.0,0.97364185]
[1752236061568,0.0627,118350.0,118340.0,0.9498811]
[1752236061767,0.64722,118350.0,118340.0,0.9498811]
[1752236062274,0.61722,118350.0,118340.0,0.97364588]
[1752236062866,0.64782,118350.0,118340.0,0.97364588]
[1752236063066,0.8167689,118350.0,118340.0,0.97364588]
[1752236064971,0.8167689,118350.0,118340.0,0.94204588]
[1752236065273,1.17767461,118350.0,118340.0,0.54592694]
[1752236065472,1.17767461,118350.0,118340.0,0.01616374]
[1752236065667,1.17767461,118350.0,118340.0,0.54592694]
[1752236065864,1.17767461,118350.0,118340.0,0.01616374]
[1752236067765,1.53847461,118350.0,118340.0,0.01616374]
[1752236067971,0.1689632,118340.0,118330.0,0.3608]
[1752236068172,0.61154304,118340.0,118330.0,0.3608]
[1752236068371,0.61154304,118340.0,118330.0,0.5297774]
[1752236069267,0.25063733,118340.0,118330.0,0.5297774]
[1752236069466,0.25063733,118340.0,118330.0,0.5307774]
[1752236069877,0.61154304,118340.0,118330.0,0.5307774]
[1752236070076,0.89557723,118340.0,118330.0,0.1699774]
[1752236070277,1.25648294,118340.0,118330.0,0.1699774]
[1752236070874,1.19598304,118340.0,118330.0,0.5307774]
[1752236071273,1.19598304,118340.0,118330.0,0.1699774]
[1752236071471,1.19598304,118340.0,118330.0,0.5307774]
[1752236072876,1.19598304,118340.0,118330.0,0.1699774]
[1752236073177,1.19598304,118340.0,118330.0,0.5307774]
[1752236075579,0.61154304,118340.0,118330.0,0.5307774]
[1752236075779,1.19598304,118340.0,118330.0,0.5307774]
[1752236075980,1.19598304,118340.0,118330.0,0.1699774]
[1752236076180,0.83507733,118340.0,118330.0,0.5307774]
[1752236076380,0.25063733,118340.0,118330.0,0.5307774]
[1752236076580,0.83503733,118340.0,118330.0,0.5307774]
[1752236076780,0.83503733,118340.0,118330.0,0.1699774]
[1752236077378,0.83503733,118340.0,118330.0,0.5307774]
[1752236079281,0.25063733,118340.0,118330.0,0.1699774]
[1752236079483,0.83503733,118340.0,118330.0,0.1699774]
[1752236080778,0.83503733,118340.0,118330.0,0.001]
[1752236081083,0.83503733,118340.0,118330.0,0.5307774]
[1752236081280,0.25063733,118340.0,118330.0,0.5307774]
[1752236081480,1.19594304,118340.0,118330.0,0.5307774]
[1752236081680,0.61154304,118340.0,118330.0,0.5307774]
[1752236081880,1.19594304,118340.0,118330.0,0.1699774]
[1752236082082,1.19594304,118340.0,118330.0,0.5307774]
[1752236082385,1.19594304,118340.0,118330.0,0.001]
[1752236082976,1.19594304,118340.0,118330.0,0.5307774]
[1752236083485,1.19594304,118340.0,118330.0,0.001]
[1752236085090,0.83503733,118340.0,118330.0,0.001]
[1752236085385,1.19594304,118340.0,118330.0,0.001]
[1752236089988,0.83503733,118340.0,118330.0,0.001]
[1752236090185,0.61154304,118340.0,118330.0,0.001]
[1752236090787,0.8175832,118340.0,118330.0,0.001]
[1752236091188,1.17848891,118340.0,118330.0,0.001]
[1752236091893,1.17848891,118340.0,118330.0,0.3618]
[1752236093597,1.19617044,118340.0,118330.0,0.3618]
[1752236094496,1.19617044,118340.0,118330.0,0.001]
[1752236094893,1.19617044,118340.0,118330.0,0.3618]
[1752236095397,1.19617044,118340.0,118330.0,0.5307774]
[1752236095999,1.19617044,118340.0,118330.0,0.1699774]
[1752236096194,1.19617044,118340.0,118330.0,0.5307774]
[1752236097300,1.19617044,118340.0,118330.0,0.001]
[1752236097502,1.19617044,118340.0,118330.0,0.5307774]
[1752236097796,1.19617044,118340.0,118330.0,0.3618]
[1752236098601,1.19617044,118340.0,118330.0,0.5307774]
[1752236099298,1.19617044,118340.0,118330.0,0.001]
[1752236099499,1.25667034,118340.0,118330.0,0.001]
[1752236099698,1.19617044,118340.0,118330.0,0.3618]
[1752236099898,1.19617044,118340.0,118330.0,0.1699774]
[1752236100098,1.19617044,118340.0,118330.0,0.5307774]
[1752236100299,1.19617044,118340.0,118330.0,0.001]
[1752236100696,0.67235034,118340.0,118330.0,0.001]
[1752236101000,1.25659034,118340.0,118330.0,0.001]
[1752236101200,0.89568463,118340.0,118330.0,0.3618]
[1752236101598,1.26267466,118340.0,118330.0,0.001]
[1752236104805,1.56297476,118340.0,118330.0,0.02448577]
[1752236105008,1.56297476,118340.0,118330.0,0.001]
[1752236105607,1.63884128,118340.0,118330.0,0.001]
[1752236105900,1.56297476,118340.0,118330.0,0.001]
[1752236106105,1.62384416,118340.0,118330.0,0.001]
[1752236106801,1.73198276,118340.0,118330.0,0.001]
[1752236107907,1.56297476,118340.0,118330.0,0.001]
[1752236108302,1.62381258,118340.0,118330.0,0.001]
[1752236109204,1.50864847,118340.0,118330.0,1e-07]
[1752236109410,0.1689772,118330.0,118320.0,6e-08]
[1752236109600,1.32257294,118330.0,118320.0,6e-08]
[1752236110000,0.96166723,118330.0,118320.0,6e-08]
[1752236110213,1.13069123,118330.0,118320.0,6e-08]
[1752236110604,1.13069123,118330.0,118320.0,0.00200006]
[1752236110799,1.49159694,118330.0,118320.0,0.00200006]
[1752236110999,1.56746346,118330.0,118320.0,0.00200006]
[1752236111305,1.49159694,118330.0,118320.0,6e-08]
[1752236111609,0.16902,118300.0,118290.0,0.3608]
[1752236111807,1.11416571,118300.0,118290.0,0.5298343]
[1752236112007,1.17686571,118300.0,118290.0,0.5298343]
[1752236112611,0.1690343,118290.0,118280.0,0.62099128]
[1752236112798,0.57943459,118290.0,118280.0,0.62099128]
[1752236112998,0.21852888,118290.0,118280.0,0.62099128]
[1752236113202,0.80276888,118290.0,118280.0,0.98189699]
[1752236113603,0.80276888,118290.0,118280.0,0.62099128]
[1752236113808,0.8088532,118290.0,118280.0,0.62099128]
[1752236114409,0.8088532,118290.0,118280.0,0.57872978]
[1752236114603,0.8088532,118290.0,118280.0,0.57972978]
[1752236117110,0.8088532,118290.0,118280.0,0.58072978]
[1752236117701,0.8088532,118290.0,118280.0,0.41169338]
[1752236117900,1.16975891,118290.0,118280.0,0.38029338]
[1752236118106,1.20225891,118290.0,118280.0,0.36449083]
[1752236118304,1.20225891,118290.0,118280.0,0.00369083]
[1752236119708,1.56305891,118290.0,118280.0,0.00369083]
[1752236121699,1.56313891,118290.0,118280.0,0.00369083]
[1752236122100,1.6239195,118290.0,118280.0,0.00369083]
[1752236122303,1.7929995,118290.0,118280.0,0.00369083]
[1752236122709,1.6239195,118290.0,118280.0,0.00369083]
[1752236123211,1.6239195,118290.0,118280.0,0.00269083]
[1752236123510,1.7929995,118290.0,118280.0,0.00269083]
[1752236123702,1.6239195,118290.0,118280.0,0.00269083]
[1752236123908,1.98482521,118290.0,118280.0,0.00269083]
[1752236124107,2.15390521,118290.0,118280.0,0.00269083]
[1752236125605,1.7929995,118290.0,118280.0,0.00269083]
[1752236126607,1.2086795,118290.0,118280.0,0.00269083]
[1752236126807,1.7930395,118290.0,118280.0,0.00269083]
[1752236128712,1.6239595,118290.0,118280.0,0.00269083]
[1752236128912,1.0395995,118290.0,118280.0,0.00269083]
[1752236129111,1.6239995,118290.0,118280.0,0.00269083]
[1752236129312,1.6239595,118290.0,118280.0,0.00269083]
[1752236129815,1.56317891,118290.0,118280.0,0.00269083]
[1752236132217,1.56317891,118290.0,118280.0,0.00279083]
[1752236133312,1.56517891,118290.0,118280.0,0.00279083]
[1752236134518,1.56817891,118290.0,118280.0,0.00179083]
[1752236135520,1.56817891,118290.0,118280.0,3e-08]
[1752236136322,1.6289595,118290.0,118280.0,3e-08]
[1752236137921,1.6309595,118290.0,118280.0,3e-08]
[1752236139418,1.57017891,118290.0,118280.0,3e-08]
[1752236139620,1.6309595,118290.0,118280.0,3e-08]
[1752236139819,1.0465995,118290.0,118280.0,3e-08]
[1752236140018,1.6309595,118290.0,118280.0,3e-08]
[1752236144325,0.68569379,118290.0,118280.0,3e-08]
[1752236144524,1.6309595,118290.0,118280.0,3e-08]
[1752236145927,1.0465995,118290.0,118280.0,3e-08]
[1752236146122,1.6309195,118290.0,118280.0,3e-08]
[1752236148325,1.57013891,118290.0,118280.0,3e-08]
[1752236148718,1.93104462,118290.0,118280.0,3e-08]
[1752236150223,2.00691114,118290.0,118280.0,3e-08]
[1752236150623,2.17599114,118290.0,118280.0,3e-08]
[1752236150825,0.1690772,118260.0,118250.0,0.0301]
[1752236151028,1.4929784,118260.0,118250.0,0.0301]
[1752236151331,1.5245784,118260.0,118250.0,0.0301]
[1752236151529,1.5245784,118260.0,118250.0,0.05322246]
[1752236151733,1.53066272,118260.0,118250.0,0.05322246]
[1752236152030,1.16986272,118260.0,118250.0,0.0311]
[1752236154331,1.20076272,118260.0,118250.0,0.0311]
[1752236155828,1.26164348,118260.0,118250.0,0.0311]
[1752236160734,0.90073777,118260.0,118250.0,0.0311]
[1752236160935,1.26164348,118260.0,118250.0,0.0311]
[1752236161131,1.20076272,118260.0,118250.0,0.0311]
[1752236163539,1.20072272,118260.0,118250.0,0.001]
[1752236164537,1.26160348,118260.0,118250.0,0.001]
[1752236165738,0.67736348,118260.0,118250.0,0.001]
[1752236166040,1.26160348,118260.0,118250.0,0.001]
[1752236168643,1.26160348,118260.0,118250.0,0.0011]
[1752236168838,1.71228271,118260.0,118250.0,0.0011]
[1752236169539,2.07308271,118260.0,118250.0,0.0011]
[1752236170443,2.07304271,118260.0,118250.0,0.0011]
[1752236172143,1.71224271,118260.0,118250.0,0.0011]
[1752236172348,1.65136195,118260.0,118250.0,0.0011]
[1752236173445,1.71219899,118260.0,118250.0,0.0011]
[1752236174451,1.71215899,118260.0,118250.0,0.0011]
[1752236175751,2.07295899,118260.0,118250.0,0.0011]
[1752236177851,2.08798847,118260.0,118250.0,0.0011]
[1752236178957,2.08794847,118260.0,118250.0,0.0011]
[1752236179958,0.1690913,118250.0,118240.0,0.0016914]
[1752236180159,0.69956989,118250.0,118240.0,0.0016914]
[1752236180858,0.64476809,118250.0,118240.0,0.0016914]
[1752236181254,0.64476809,118250.0,118240.0,0.0046914]
[1752236182157,0.70565655,118250.0,118240.0,0.0046914]
[1752236186064,1.28973655,118250.0,118240.0,0.0046914]
[1752236187063,1.22884809,118250.0,118240.0,0.0046914]
[1752236187962,1.28973655,118250.0,118240.0,0.0046914]
[1752236189362,0.70565655,118250.0,118240.0,0.0046914]
[1752236189562,1.28969655,118250.0,118240.0,0.0046914]
[1752236190764,1.22880809,118250.0,118240.0,0.0046914]
[1752236191561,0.64476809,118250.0,118240.0,0.0046914]
[1752236191765,1.22876809,118250.0,118240.0,0.0047914]
[1752236194362,0.64476809,118250.0,118240.0,0.0047914]
[1752236194567,1.22876809,118250.0,118240.0,0.0047914]
[1752236195271,0.82297562,118250.0,118240.0,0.0047914]
[1752236195570,1.22876809,118250.0,118240.0,0.0047914]
[1752236196970,1.58956809,118250.0,118240.0,0.0047914]
[1752236197971,1.00556809,118250.0,118240.0,0.0047914]
[1752236198269,1.58952809,118250.0,118240.0,0.0047914]
[1752236199671,1.22872809,118250.0,118240.0,0.0047914]
[1752236200273,0.64476809,118250.0,118240.0,0.0047914]
[1752236200473,1.22868809,118250.0,118240.0,0.0047914]
[1752236204379,0.64476809,118250.0,118240.0,0.0047914]
[1752236204677,1.22864809,118250.0,118240.0,0.0047914]
[1752236205582,1.58944809,118250.0,118240.0,0.0047914]
[1752236206581,1.00556809,118250.0,118240.0,0.0047914]
[1752236206878,1.22860809,118250.0,118240.0,0.0047914]
[1752236207181,1.58940809,118250.0,118240.0,0.0047914]
[1752236208581,1.22860809,118250.0,118240.0,0.0047914]